bitfinex/quotes_ETHUSD_20230119
["timestamp","ask_amount","ask_price","bid_price","bid_amount"]
[1674131305577,11.30722708,1523.2,1522.9,9.4517249]
[1674131307368,12.33825171,1523.2,1522.9,7.35307544]
[1674131307512,12.33825171,1523.2,1522.9,6.35307544]
[1674131307725,11.30722708,1523.2,1522.9,6.35307544]
[1674131307986,11.30722708,1523.2,1522.9,7.35307544]
[1674131308204,11.30722708,1523.2,1522.9,6.35307544]
[1674131310051,11.30722708,1523.2,1522.9,7.35307544]
[1674131310265,11.30722708,1523.2,1522.9,10.4517249]
[1674131311334,11.30722708,1523.2,1522.9,6.35307544]
[1674131311880,11.30722708,1523.2,1522.9,7.35307544]
[1674131312044,11.30722708,1523.2,1522.9,6.35307544]
[1674131313465,12.33825171,1523.2,1522.9,6.35307544]
[1674131316336,12.33825171,1523.2,1522.9,7.35307544]
[1674131316551,12.33825171,1523.2,1522.9,6.35307544]
[1674131316552,11.30722708,1523.2,1522.9,6.35307544]
[1674131317443,11.30722708,1523.2,1522.9,7.35307544]
[1674131317620,10.61543011,1523.2,1522.9,10.4517249]
[1674131319177,10.61543011,1523.2,1522.9,9.4517249]
[1674131319557,11.30432124,1523.2,1522.9,9.4517249]
[1674131322385,10.61543011,1523.2,1522.9,9.4517249]
[1674131325481,11.30432124,1523.2,1522.9,9.4517249]
[1674131325903,10.61543011,1523.2,1522.9,9.4517249]
[1674131326561,11.30432124,1523.2,1522.9,9.4517249]
[1674131326778,11.30432124,1523.2,1522.9,6.35307544]
[1674131329478,11.30432124,1523.2,1522.9,6.37960787]
[1674131329794,10.61543011,1523.2,1522.9,6.37960787]
[1674131330007,11.30432124,1523.2,1522.9,6.37960787]
[1674131333674,11.30432124,1523.2,1522.9,3.08786028]
[1674131333889,0.4925,1523.1,1522.9,3.02298865]
[1674131334138,11.79682124,1523.2,1522.9,3.02298865]
[1674131336847,0.68889113,1523.1,1522.9,3.02298865]
[1674131337607,12.82784587,1523.2,1522.9,3.02298865]
[1674131338250,0.68889113,1523.1,1522.9,3.02298865]
[1674131338415,0.68889113,1523.1,1522.8,20.00342136]
[1674131338625,0.68889113,1523.0,1522.8,20.00098727]
[1674131340767,3.01981395,1523.1,1522.8,20.00098727]
[1674131340982,4.63086919,1523.1,1522.8,20.00098727]
[1674131341524,0.68889113,1523.0,1522.8,20.00098727]
[1674131343479,4.69686919,1523.1,1522.8,20.00098727]
[1674131343686,4.63086919,1523.1,1522.8,20.00098727]
[1674131343922,1.15197805,1523.0,1522.8,20.00098727]
[1674131347663,0.46308692,1523.0,1522.8,20.00098727]
[1674131349448,0.68889113,1523.1,1522.8,23.29273486]
[1674131349716,12.82784587,1523.2,1522.9,3.29174759]
[1674131349870,11.30432124,1523.2,1522.9,3.29174759]
[1674131350482,11.30432124,1523.2,1522.9,4.94868002]
[1674131351088,11.30432124,1523.2,1522.9,4.29174759]
[1674131352322,10.61543011,1523.2,1522.9,7.57334675]
[1674131352532,11.30432124,1523.2,1523.0,1.0]
[1674131352737,0.22153011,1523.2,1523.0,4.29174759]
[1674131352947,0.15553011,1523.2,1523.0,5.15556943]
[1674131353160,0.15553011,1523.2,1523.0,5.22044106]
[1674131354998,0.15553011,1523.2,1523.1,3.29174759]
[1674131355577,0.15553011,1523.2,1523.1,3.87948494]
[1674131355790,0.15553011,1523.2,1523.1,6.87948494]
[1674131356139,0.15553011,1523.2,1523.1,6.94435657]
[1674131358733,0.15206346,1523.2,1523.1,7.17435657]
[1674131360871,0.15206346,1523.2,1523.1,7.17057779]
[1674131363888,0.15206346,1523.2,1523.1,6.58284044]
[1674131367180,0.15206346,1523.2,1523.1,26.58284044]
[1674131367527,0.15206346,1523.2,1523.1,26.35284044]
[1674131368878,0.15206346,1523.2,1523.1,23.06487163]
[1674131373323,0.15206346,1523.2,1523.1,26.35661922]
[1674131373589,0.15206346,1523.2,1523.1,28.99228114]
[1674131374815,0.21063086,1523.3,1523.1,28.99228114]
[1674131375483,0.21063086,1523.3,1523.2,19.93611564]
[1674131375693,0.21063086,1523.3,1523.2,20.00098727]
[1674131386871,0.21063086,1523.3,1523.2,19.95098727]
[1674131393400,0.89952199,1523.3,1523.2,19.95098727]
[1674131397257,0.21063086,1523.3,1523.2,19.95098727]
[1674131397712,0.89952199,1523.3,1523.2,19.95098727]
[1674131398461,0.21063086,1523.3,1523.2,19.95098727]
[1674131399730,0.89952199,1523.3,1523.2,19.95098727]
[1674131400722,0.21063086,1523.3,1523.2,19.95098727]
[1674131404301,0.89952199,1523.3,1523.2,19.95098727]
[1674131405085,0.21063086,1523.3,1523.2,19.95098727]
[1674131405888,0.89952199,1523.3,1523.2,19.95098727]
[1674131407523,2.14257687,1523.3,1523.2,19.95098727]
[1674131411302,1.11155224,1523.3,1523.2,19.95098727]
[1674131412954,2.14257687,1523.3,1523.2,19.95098727]
[1674131415830,2.14251935,1523.3,1523.2,19.94788856]
[1674131416164,1.45368574,1523.3,1523.2,19.94788856]
[1674131416452,1.45368574,1523.3,1523.2,19.19088416]
[1674131418542,1.11138103,1523.3,1523.2,19.19088416]
[1674131418754,2.14240566,1523.3,1523.2,19.19088416]
[1674131419514,1.45368574,1523.3,1523.2,19.19088416]
[1674131420298,2.82838525,1523.3,1523.2,19.19088416]
[1674131421670,1.79736062,1523.3,1523.2,19.19088416]
[1674131421882,1.4558161,1523.3,1523.2,19.19088416]
[1674131423622,2.1444943,1523.3,1523.2,19.19088416]
[1674131423782,1.11133931,1523.3,1523.2,19.19088416]
[1674131424939,2.1444943,1523.3,1523.2,19.19088416]
[1674131425153,1.11133931,1523.3,1523.2,19.19088416]
[1674131426339,2.1444943,1523.3,1523.2,19.19088416]
[1674131427082,1.11133931,1523.3,1523.2,19.19088416]
[1674131428237,1.4558161,1523.3,1523.2,19.19088416]
[1674131428753,2.7528161,1523.3,1523.2,0.06487163]
[1674131428971,4.12751561,1523.3,1523.0,19.15254612]
[1674131429296,0.96407285,1523.2,1523.0,19.21741775]
[1674131430339,0.68879124,1523.1,1523.0,19.21741775]
[1674131431266,1.99722784,1523.2,1523.0,19.21741775]
[1674131431882,0.68879124,1523.1,1523.0,19.21741775]
[1674131432322,0.88851402,1523.1,1523.0,19.19088416]
[1674131437054,0.88851402,1523.1,1523.0,19.18745622]
[1674131443176,1.92166901,1523.1,1523.0,19.18745622]
[1674131443387,0.88851402,1523.1,1523.0,19.18745622]
[1674131443777,6.03292229,1523.1,1523.0,19.18745622]
[1674131444131,6.09892229,1523.1,1523.0,19.18745622]
[1674131444434,6.09892229,1523.1,1523.0,0.06487163]
[1674131444593,25.65782229,1523.1,1522.6,17.46547163]
[1674131444817,1.296,1522.9,1522.7,19.12258459]
[1674131445030,1.296,1522.9,1522.7,19.18745622]
[1674131445660,1.98398311,1522.9,1522.7,19.18745622]
[1674131446138,1.296,1522.9,1522.7,19.18745622]
[1674131446349,1.990474,1522.9,1522.7,19.18745622]
[1674131446937,2.67845711,1522.9,1522.7,19.18745622]
[1674131447180,2.6813553,1522.9,1522.7,19.18745622]
[1674131447600,0.4926,1522.8,1522.7,19.18745622]
[1674131447812,4.20592996,1522.9,1522.7,0.06487163]
[1674131448028,0.371333,1522.8,1522.5,0.06487163]
[1674131448184,0.49549819,1522.9,1522.5,4.29174759]
[1674131448729,0.49549819,1522.9,1522.5,5.58874759]
[1674131448944,0.49549819,1522.9,1522.5,23.77620381]
[1674131449161,0.49549819,1522.9,1522.5,27.96318098]
[1674131450125,1.1834813,1522.9,1522.5,27.96318098]
[1674131450303,1.1834813,1522.9,1522.5,19.18745622]
[1674131450304,2.1834813,1522.9,1522.5,19.18745622]
[1674131450509,1.1834813,1522.9,1522.5,19.18745622]
[1674131450762,17.67620438,1522.7,1522.5,19.18745622]
[1674131450965,17.74220438,1522.7,1522.5,19.18745622]
[1674131451142,19.51642482,1522.7,1522.5,19.18745622]
[1674131456657,0.00289819,1522.6,1522.5,19.18745622]
[1674131456830,1.37789819,1522.6,1522.5,19.18745622]
[1674131460087,0.00289819,1522.6,1522.5,19.18745622]
[1674131460307,1.37789819,1522.6,1522.5,19.18745622]
[1674131460511,3.46733049,1522.6,1522.5,19.18745622]
[1674131461577,3.46733049,1522.6,1522.5,19.18441229]
[1674131461796,3.46733049,1522.6,1522.5,19.18841229]
[1674131462008,3.96003049,1522.6,1522.5,19.18841229]
[1674131462495,3.96003049,1522.6,1522.5,0.0658277]
[1674131462705,3.46733049,1522.6,1522.4,0.05509631]
[1674131462904,1.72173305,1522.5,1522.4,0.05509631]
[1674131463918,2.21443305,1522.5,1522.4,0.05509631]
[1674131464900,0.83943305,1522.5,1522.4,0.05509631]
[1674131465114,0.4927,1522.5,1522.4,0.05509631]
[1674131465803,0.00289819,1522.6,1522.4,0.05509631]
[1674131466370,37.77790438,1522.7,1522.4,0.05509631]
[1674131467077,27.33840438,1522.7,1522.4,4.3468439]
[1674131467214,17.74220438,1522.7,1522.5,0.43468439]
[1674131467460,17.74220438,1522.7,1522.5,5.02343198]
[1674131467670,17.74220438,1522.7,1522.5,5.08925968]
[1674131467987,17.74220438,1522.7,1522.5,24.21184427]
[1674131468465,17.74220438,1522.7,1522.6,2.42118443]
[1674131468670,0.066,1522.7,1522.6,2.42118443]
[1674131468945,10.5417,1522.9,1522.6,2.42118443]
[1674131469078,28.21790438,1522.9,1522.5,22.48015988]
[1674131469502,28.90588749,1522.9,1522.5,22.48015988]
[1674131470019,29.93786215,1522.9,1522.5,22.48015988]
[1674131470233,29.94076034,1522.9,1522.5,22.48015988]
[1674131471579,0.68798311,1522.8,1522.5,22.48015988]
[1674131472059,1.68798311,1522.8,1522.5,22.48015988]
[1674131472218,3.91952909,1522.8,1522.5,22.48015988]
[1674131472422,4.91952909,1522.8,1522.5,22.48015988]
[1674131472680,5.95150375,1522.8,1522.5,19.18841229]
[1674131472841,0.6908813,1522.7,1522.5,19.18841229]
[1674131473053,1.3551198,1522.7,1522.5,19.18841229]
[1674131473308,2.3551198,1522.7,1522.5,19.18841229]
[1674131475207,1.3551198,1522.7,1522.5,19.18841229]
[1674131477729,2.38709446,1522.7,1522.5,19.18841229]
[1674131477940,3.38709446,1522.7,1522.5,19.18841229]
[1674131478266,2.40169256,1522.6,1522.5,19.18841229]
[1674131478618,2.40169256,1522.6,1522.5,0.0658277]
[1674131478828,2.40169256,1522.6,1522.4,0.05509631]
[1674131480466,3.43366722,1522.6,1522.4,0.05509631]
[1674131480823,17.67620438,1522.5,1522.4,0.05509631]
[1674131481085,19.85319154,1522.5,1522.4,0.05509631]
[1674131481709,20.54117465,1522.5,1522.4,0.05509631]
[1674131482092,21.57314931,1522.5,1522.4,0.05509631]
[1674131482737,21.57314931,1522.5,1522.4,0.05195387]
[1674131483732,20.54117465,1522.5,1522.4,0.05195387]
[1674131488351,21.57314931,1522.5,1522.4,0.05195387]
[1674131488988,22.25986571,1522.5,1522.4,0.05195387]
[1674131489235,22.75256571,1522.5,1522.4,0.05195387]
[1674131489400,21.3778662,1522.5,1522.4,0.05195387]
[1674131489986,22.75256571,1522.5,1522.4,0.05195387]
[1674131491023,21.3778662,1522.5,1522.4,0.05195387]
[1674131491228,22.75256571,1522.5,1522.4,0.05195387]
[1674131491423,21.3778662,1522.5,1522.4,0.05195387]
[1674131494295,29.6493569,1522.5,1522.4,0.05195387]
[1674131494479,26.6521457,1522.5,1522.4,0.05195387]
[1674131495757,45.0982457,1522.5,1522.4,0.05195387]
[1674131496895,48.43939984,1522.5,1522.4,0.05195387]
[1674131497229,45.0982457,1522.5,1522.4,0.05195387]
[1674131498970,48.43975815,1522.5,1522.4,0.05195387]
[1674131500575,2.22005762,1522.4,1522.3,0.05373017]
[1674131500744,9.97256191,1522.4,1522.3,0.05373017]
[1674131501119,10.03856191,1522.4,1522.3,0.05373017]
[1674131501333,11.06956828,1522.4,1522.3,0.05373017]
[1674131501500,10.03856191,1522.4,1522.3,0.05373017]
[1674131502156,11.06955812,1522.4,1522.3,0.05373017]
[1674131502491,9.69460142,1522.4,1522.3,0.05373017]
[1674131502794,7.10160142,1522.4,1522.3,0.05373017]
[1674131504056,7.10449961,1522.4,1522.3,0.05373017]
[1674131505638,7.79161491,1522.4,1522.3,0.05373017]
[1674131506426,6.7606187,1522.4,1522.3,0.05373017]
[1674131506688,7.79161491,1522.4,1522.3,0.05373017]
[1674131507769,7.10449961,1522.4,1522.3,0.05373017]
[1674131509056,6.79176001,1522.4,1522.3,0.05373017]
[1674131509314,6.10449961,1522.4,1522.3,0.05373017]
[1674131509524,7.10449961,1522.4,1522.3,0.05373017]
[1674131510056,6.10449961,1522.4,1522.3,0.05373017]
[1674131510214,6.79205302,1522.4,1522.3,0.05373017]
[1674131510416,6.10449961,1522.4,1522.3,0.05373017]
[1674131510627,7.10449961,1522.4,1522.3,0.05373017]
[1674131511698,7.47945631,1522.4,1522.3,0.05373017]
[1674131512207,7.10449961,1522.4,1522.3,0.05373017]
[1674131513288,6.10449961,1522.4,1522.3,0.05373017]
[1674131513526,7.4484601,1522.4,1522.3,0.05373017]
[1674131514301,8.48044589,1522.4,1522.3,0.05373017]
[1674131514570,4.1886983,1522.4,1522.3,0.05373017]
[1674131514755,4.1226983,1522.4,1522.3,0.05373017]
[1674131514965,2.7477416,1522.4,1522.3,0.05373017]
[1674131515201,4.1226983,1522.4,1522.3,0.05373017]
[1674131515935,2.7477416,1522.4,1522.3,0.05373017]
[1674131516579,2.94014057,1522.4,1522.3,0.05373017]
[1674131516721,1.72008295,1522.4,1522.3,0.05373017]
[1674131516934,0.68809716,1522.4,1522.3,0.05373017]
[1674131517365,1.03198579,1522.4,1522.3,0.05373017]
[1674131517720,1.72031109,1522.4,1522.3,0.05373017]
[1674131519249,1.03198579,1522.4,1522.3,0.05373017]
[1674131521275,2.40694249,1522.4,1522.3,0.05373017]
[1674131521706,2.4079318,1522.4,1522.3,0.05373017]
[1674131522516,2.4079362,1522.4,1522.3,0.05134114]
[1674131522843,2.40793113,1522.4,1522.3,0.05134114]
[1674131523239,3.25925282,1522.4,1522.3,0.05134114]
[1674131524733,3.60180269,1522.4,1522.3,0.05134114]
[1674131525284,1.88429612,1522.4,1522.3,0.05134114]
[1674131525499,2.88429612,1522.4,1522.3,0.05134114]
[1674131527241,4.95484039,1522.4,1522.3,0.05134114]
[1674131528385,4.95484039,1522.4,1522.3,0.00134114]
[1674131528968,8.24658798,1522.4,1522.3,0.00134114]
[1674131529174,8.31258798,1522.4,1522.3,0.00134114]
[1674131529333,8.80538798,1522.4,1522.3,0.00134114]
[1674131533377,6.73484371,1522.4,1522.3,0.00134114]
[1674131533751,8.02584371,1522.4,1522.3,0.00134114]
[1674131533957,10.09265613,1522.4,1522.3,0.00134114]
[1674131534395,1.0,1522.3,1522.2,0.05307131]
[1674131534622,7.86072526,1522.3,1522.2,0.05307131]
[1674131534814,7.92672526,1522.3,1522.2,0.05307131]
[1674131538023,7.92962345,1522.3,1522.2,0.05307131]
[1674131540205,5.86271139,1522.3,1522.2,0.05307131]
[1674131540428,7.92962345,1522.3,1522.2,0.05307131]
[1674131540795,5.86271139,1522.3,1522.2,0.05307131]
[1674131542152,7.92962345,1522.3,1522.2,0.05307131]
[1674131542384,5.86271139,1522.3,1522.2,0.05307131]
[1674131542890,7.92962345,1522.3,1522.2,0.05307131]
[1674131544637,10.92962345,1522.3,1522.2,0.05307131]
[1674131545895,8.86271139,1522.3,1522.2,0.05307131]
[1674131547739,5.17166429,1522.3,1522.2,0.05307131]
[1674131548079,2.78624057,1522.3,1522.2,0.05307131]
[1674131548297,2.72024057,1522.3,1522.2,0.05307131]
[1674131549237,2.72024057,1522.3,1522.2,0.29224535]
[1674131550097,6.01210889,1522.3,1522.2,0.29224535]
[1674131550313,6.07810889,1522.3,1522.2,0.29224535]
[1674131550465,7.2303206,1522.3,1522.2,0.29224535]
[1674131551377,7.23321879,1522.3,1522.2,0.29224535]
[1674131552211,7.72601879,1522.3,1522.2,0.29224535]
[1674131553459,7.72625926,1522.3,1522.2,0.29224535]
[1674131553669,6.00565749,1522.3,1522.2,0.29224535]
[1674131556359,6.00565749,1522.3,1522.2,0.05307131]
[1674131557716,6.00565749,1522.3,1522.2,0.0493865]
[1674131559345,8.07256955,1522.3,1522.2,0.0493865]
[1674131566774,15.31557636,1522.3,1522.2,0.03782655]
[1674131567258,18.31557636,1522.3,1522.2,0.03782655]
[1674131567442,27.23887817,1522.3,1522.2,0.03782655]
[1674131567631,18.50478466,1522.3,1522.2,0.03782655]
[1674131579308,19.00048285,1522.3,1522.2,0.03782655]
[1674131580359,16.93185749,1522.3,1522.2,0.03782655]
[1674131582099,19.00097163,1522.3,1522.2,0.03782655]
[1674131589785,18.50817163,1522.3,1522.2,0.03782655]
[1674131589949,18.50860176,1522.3,1522.2,0.03782655]
[1674131590370,16.43905749,1522.3,1522.2,0.03782655]
[1674131590618,18.50857305,1522.3,1522.2,0.03782655]
[1674131591156,18.50857305,1522.3,1522.2,0.03440261]
[1674131591476,25.42057791,1522.3,1522.2,0.03440261]
[1674131592257,25.42060871,1522.3,1522.2,0.03440261]
[1674131592677,23.35105749,1522.3,1522.2,0.03440261]
[1674131592994,15.50567599,1522.3,1522.2,0.03440261]
[1674131593202,14.35346428,1522.3,1522.2,0.03440261]
[1674131595951,12.28394759,1522.3,1522.2,0.03440261]
[1674131598531,2.47935756,1522.3,1522.2,1.33140261]
[1674131598745,1.03427878,1522.3,1522.2,1.33140261]
[1674131600047,1.72326364,1522.3,1522.2,1.33140261]
[1674131600257,0.68898486,1522.3,1522.2,1.33140261]
[1674131601939,0.68898486,1522.3,1522.2,1.57006866]
[1674131602223,19.46546802,1522.5,1522.2,2.86306866]
[1674131602517,18.43118924,1522.5,1522.2,1.56606866]
[1674131602738,18.43118924,1522.5,1522.3,0.15660687]
[1674131602885,18.43118924,1522.5,1522.3,1.15660687]
[1674131604090,17.74220438,1522.5,1522.3,1.15660687]
[1674131604298,17.74220438,1522.5,1522.3,0.15660687]
[1674131605098,17.74220438,1522.5,1522.4,2.594]
[1674131605369,17.74220438,1522.5,1522.4,2.96906069]
[1674131606632,17.74220438,1522.5,1522.4,1.297]
[1674131614408,17.74220438,1522.5,1522.3,1.297]
[1674131614736,17.74220438,1522.5,1522.2,1.32740261]
[1674131614965,18.43118924,1522.5,1522.2,1.32740261]
[1674131615137,18.43118924,1522.5,1522.2,0.03440261]
[1674131615138,20.37802586,1522.5,1522.2,0.03440261]
[1674131615486,1.68898486,1522.4,1522.2,0.0317267]
[1674131616088,0.68898486,1522.4,1522.2,0.0317267]
[1674131616414,2.83050514,1522.4,1522.2,0.0317267]
[1674131616937,2.14152028,1522.4,1522.2,0.0317267]
[1674131617150,2.83050514,1522.4,1522.2,0.0317267]
[1674131619151,3.86478392,1522.4,1522.2,0.0317267]
[1674131619798,1.68898486,1522.3,1522.2,0.0317267]
[1674131620020,2.55391801,1522.3,1522.2,0.0317267]
[1674131620828,1.55391801,1522.3,1522.2,0.0317267]
[1674131621069,4.42358392,1522.4,1522.2,0.0317267]
[1674131621267,4.35758392,1522.4,1522.2,0.0317267]
[1674131621582,5.35758392,1522.4,1522.2,0.0317267]
[1674131621745,4.42358392,1522.4,1522.2,0.0317267]
[1674131621958,0.44235839,1522.3,1522.2,0.0317267]
[1674131623841,1.13134325,1522.3,1522.2,0.0317267]
[1674131625837,0.44235839,1522.3,1522.2,0.0317267]
[1674131626043,0.68898486,1522.3,1522.2,0.0317267]
[1674131628482,1.72326364,1522.3,1522.2,0.0317267]
[1674131629168,1.03427878,1522.3,1522.2,0.0317267]
[1674131629321,6.70510515,1522.3,1522.2,0.0317267]
[1674131629527,5.73682637,1522.3,1522.2,0.0317267]
[1674131629741,7.35123471,1522.3,1522.2,0.0317267]
[1674131630062,9.07517142,1522.3,1522.2,0.0317267]
[1674131631313,17.35587142,1522.3,1522.2,0.0317267]
[1674131631788,15.63193471,1522.3,1522.2,0.0317267]
[1674131632584,14.63193471,1522.3,1522.2,0.0317267]
[1674131635060,16.35587142,1522.3,1522.2,0.0317267]
[1674131635983,14.63193471,1522.3,1522.2,0.0317267]
[1674131637688,15.66364082,1522.3,1522.2,0.0317267]
[1674131637911,10.99281445,1522.3,1522.2,0.0317267]
[1674131639033,30.69981445,1522.3,1522.2,0.0317267]
[1674131639492,30.69981445,1522.3,1522.2,0.02925045]
[1674131642857,32.07889323,1522.3,1522.2,0.02925045]
[1674131644940,30.69981445,1522.3,1522.2,0.02925045]
[1674131645146,32.07889323,1522.3,1522.2,0.02925045]
[1674131646644,31.04718712,1522.3,1522.2,0.02925045]
[1674131647066,32.07920301,1522.3,1522.2,0.02925045]
[1674131647243,31.04718712,1522.3,1522.2,0.02925045]
[1674131648226,31.39204505,1522.3,1522.2,0.02925045]
[1674131649245,38.18379264,1522.3,1522.2,0.02925045]
[1674131649464,35.17659264,1522.3,1522.2,0.02925045]
[1674131651950,33.45265593,1522.3,1522.2,0.02925045]
[1674131652641,35.17406268,1522.3,1522.2,0.02925045]
[1674131653851,33.45265593,1522.3,1522.2,0.02925045]
[1674131654859,35.17497552,1522.3,1522.2,0.02925045]
[1674131655028,33.45265593,1522.3,1522.2,0.02925045]
[1674131655608,33.26101789,1522.3,1522.2,0.02925045]
[1674131655736,31.64660955,1522.3,1522.2,0.02925045]
[1674131656423,29.9242997,1522.3,1522.2,0.02925045]
[1674131657224,29.4314997,1522.3,1522.2,0.02925045]
[1674131657435,31.15380955,1522.3,1522.2,0.02925045]
[1674131658000,29.77600985,1522.3,1522.2,0.02925045]
[1674131659347,29.77334438,1522.3,1522.2,0.02925045]
[1674131660833,31.15158148,1522.3,1522.2,0.02925045]
[1674131661151,29.77334438,1522.3,1522.2,0.02925045]
[1674131665468,28.54383453,1522.3,1522.2,0.02925045]
[1674131668081,31.83558212,1522.3,1522.2,0.02925045]
[1674131669942,33.90509881,1522.3,1522.2,0.02925045]
[1674131670554,31.83558212,1522.3,1522.2,0.02925045]
[1674131676230,30.26766361,1522.3,1522.2,0.02925045]
[1674131677090,28.54383453,1522.3,1522.2,0.02925045]
[1674131679954,28.54383453,1522.3,1522.2,0.02637676]
[1674131681895,33.90509881,1522.3,1522.2,0.02637676]
[1674131685189,36.90509881,1522.3,1522.2,0.02637676]
[1674131688639,39.88658212,1522.3,1522.2,0.02637676]
[1674131688896,42.51450099,1522.3,1522.2,0.02637676]
[1674131689937,49.42650099,1522.3,1522.2,0.02052037]
[1674131690317,47.02858212,1522.3,1522.2,0.02052037]
[1674131690717,49.42650099,1522.3,1522.2,0.02052037]
[1674131691978,47.02858212,1522.3,1522.2,0.02052037]
[1674131693697,43.52858212,1522.3,1522.2,0.02052037]
[1674131693976,45.59607402,1522.3,1522.2,0.02052037]
[1674131694133,43.52858212,1522.3,1522.2,0.02052037]
[1674131695567,47.02858212,1522.3,1522.2,0.02052037]
[1674131695781,49.42650099,1522.3,1522.2,0.02052037]
[1674131696736,49.42650099,1522.3,1522.1,0.0552579]
[1674131696971,9.85173888,1522.2,1522.1,0.0552579]
[1674131697296,36.76536341,1522.2,1522.1,0.0552579]
[1674131697517,47.33056341,1522.2,1522.1,0.0552579]
[1674131701354,48.76337212,1522.2,1522.1,0.04299312]
[1674131702222,1.0,1522.1,1522.0,0.05215462]
[1674131702431,38.59027646,1522.1,1522.0,4.62e-06]
[1674131702662,48.14069212,1522.1,1521.9,0.04599027]
[1674131702984,35.70450219,1522.0,1521.9,0.04599027]
[1674131703196,35.76783672,1522.0,1521.9,0.04599027]
[1674131703351,46.80963672,1522.0,1521.9,0.04599027]
[1674131703774,44.74268212,1522.0,1521.9,0.04599027]
[1674131704679,46.80963672,1522.0,1521.9,0.04599027]
[1674131704990,44.74268212,1522.0,1521.9,0.04599027]
[1674131706034,44.74558031,1522.0,1521.9,0.04599027]
[1674131710998,48.24558031,1522.0,1521.9,0.04599027]
[1674131711590,44.74558031,1522.0,1521.9,0.04599027]
[1674131712542,48.24558031,1522.0,1521.9,0.04599027]
[1674131712962,44.74558031,1522.0,1521.9,0.04599027]
[1674131713388,50.31253491,1522.0,1521.9,0.03578658]
[1674131713581,48.24558031,1522.0,1521.9,0.03578658]
[1674131714127,44.74558031,1522.0,1521.9,0.03578658]
[1674131714837,46.46541749,1522.0,1521.9,0.03578658]
[1674131715682,46.23540299,1522.0,1521.9,0.03578658]
[1674131715889,40.69920215,1522.0,1521.9,0.03578658]
[1674131716099,40.69941329,1522.0,1521.9,0.03578658]
[1674131717828,39.32340299,1522.0,1521.9,0.03578658]
[1674131720248,37.60358031,1522.0,1521.9,0.03578658]
[1674131721438,39.32429883,1522.0,1521.9,0.03578658]
[1674131721583,37.60358031,1522.0,1521.9,0.03578658]
[1674131721796,39.32429738,1522.0,1521.9,0.03578658]
[1674131722375,37.60358031,1522.0,1521.9,0.03578658]
[1674131723944,39.32455937,1522.0,1521.9,0.03578658]
[1674131724212,37.60358031,1522.0,1521.9,0.03578658]
[1674131725748,39.32494637,1522.0,1521.9,0.03578658]
[1674131725904,37.60358031,1522.0,1521.9,0.03578658]
[1674131727976,39.67053491,1522.0,1521.9,0.03578658]
[1674131728951,39.66673941,1522.0,1521.9,0.03578658]
[1674131729163,39.17383941,1522.0,1521.9,0.03578658]
[1674131730374,46.31583941,1522.0,1521.9,0.03578658]
[1674131730548,46.79183942,1522.0,1521.9,0.03578658]
[1674131732474,46.79183942,1522.0,1521.9,1.01873515]
[1674131735716,35.75003942,1522.0,1521.9,1.01873515]
[1674131738242,33.68308482,1522.0,1521.9,1.01873515]
[1674131738668,36.08100369,1522.0,1521.9,1.01873515]
[1674131738882,33.68308482,1522.0,1521.9,1.01873515]
[1674131740238,36.08100369,1522.0,1521.9,1.01873515]
[1674131745110,33.68308482,1522.0,1521.9,1.01873515]
[1674131746297,26.77108482,1522.0,1521.9,1.01873515]
[1674131746682,26.54108482,1522.0,1521.9,1.01873515]
[1674131746937,28.60785703,1522.0,1521.9,1.01873515]
[1674131747163,26.53818663,1522.0,1521.9,1.01873515]
[1674131747553,15.40450182,1522.0,1521.9,1.12593552]
[1674131747992,16.78342032,1522.0,1521.9,1.12593552]
[1674131748553,15.05885304,1522.0,1521.9,1.12593552]
[1674131751077,16.09265617,1522.0,1521.9,1.12593552]
[1674131752212,14.71373767,1522.0,1521.9,1.12593552]
[1674131752859,16.09265617,1522.0,1521.9,1.12246055]
[1674131753384,16.09265617,1522.0,1521.9,1.01526018]
[1674131754223,14.71373767,1522.0,1521.9,1.01526018]
[1674131758114,15.40235218,1522.0,1521.9,1.01526018]
[1674131758639,14.36854905,1522.0,1521.9,1.01526018]
[1674131759319,15.40235218,1522.0,1521.9,1.01526018]
[1674131759928,14.36854905,1522.0,1521.9,1.01526018]
[1674131760227,14.36854905,1522.0,1521.9,1.25111305]
[1674131760376,0.53933454,1522.0,1521.9,2.55011305]
[1674131760736,0.47600001,1522.0,1521.9,2.55011305]
[1674131760954,0.47600001,1522.0,1521.9,7.34699175]
[1674131761164,0.47600001,1522.0,1521.9,3.91494075]
[1674131761374,0.47600001,1522.0,1521.9,3.84911305]
[1674131761937,0.47600001,1522.0,1521.9,4.84911305]
[1674131765472,0.47600001,1522.0,1521.9,11.41984305]
[1674131765721,0.47600001,1522.0,1521.9,11.48567075]
[1674131766369,0.47600001,1522.0,1521.9,28.12500342]
[1674131766570,0.47600001,1522.0,1521.9,24.62713075]
[1674131769150,0.47600001,1522.0,1521.9,27.91887834]
[1674131769322,0.47600001,1522.0,1521.9,28.14887834]
[1674131769743,1e-08,1522.0,1521.9,32.94433417]
[1674131769952,1e-08,1522.0,1521.9,43.73333417]
[1674131770592,1e-08,1522.0,1521.9,51.34863417]
[1674131772512,17.73953891,1522.5,1521.9,52.48960403]
[1674131772684,17.73953891,1522.5,1522.4,2.577]
[1674131779599,17.73953891,1522.5,1522.4,1.29]
[1674131784167,17.73953891,1522.5,1522.3,1.02441537]
[1674131785778,17.73953891,1522.5,1522.4,3.29174759]
[1674131786004,17.73953891,1522.5,1522.4,30.23437428]
[1674131786141,0.06333453,1522.5,1522.4,34.59920198]
[1674131786492,17.67620438,1522.7,1522.5,1.0]
[1674131786679,0.06333453,1522.7,1522.6,23.22487759]
[1674131786894,0.11077578,1522.8,1522.6,28.64798201]
[1674131787093,0.11077578,1522.8,1522.7,3.29174759]
[1674131787300,0.11077578,1522.8,1522.7,10.08902759]
[1674131787516,0.11077578,1522.8,1522.7,10.15485529]
[1674131787928,0.11077578,1522.8,1522.7,11.45385529]
[1674131788185,0.11077578,1522.8,1522.7,16.23216895]
[1674131790207,0.11077578,1522.8,1522.7,16.25663553]
[1674131792776,0.11077578,1522.8,1522.7,16.25284033]
[1674131793250,0.11077578,1522.8,1522.7,14.95384033]
[1674131793861,0.11077578,1522.8,1522.7,5.09860794]
[1674131794074,0.11077578,1522.8,1522.7,0.09029428]
[1674131794290,1.36977578,1522.8,1522.6,19.18841229]
[1674131794464,7.93662578,1522.8,1522.6,19.18841229]
[1674131794683,8.68857482,1522.8,1522.6,19.18841229]
[1674131794881,12.08509505,1522.8,1522.6,19.18841229]
[1674131795139,18.65194505,1522.8,1522.6,19.18841229]
[1674131795893,19.68574818,1522.8,1522.6,19.18841229]
[1674131796096,19.68574818,1522.8,1522.6,0.0658277]
[1674131796408,19.68574818,1522.8,1522.4,43.6744577]
[1674131796560,16.28922795,1522.8,1522.4,52.22922006]
[1674131796977,16.28922795,1522.8,1522.4,42.99372006]
[1674131797241,16.28922795,1522.8,1522.4,62.11630465]
[1674131797434,15.25542482,1522.8,1522.4,62.11630465]
[1674131797651,15.25542482,1522.8,1522.4,62.11430465]
[1674131797854,0.68861451,1522.7,1522.4,62.14077604]
[1674131798258,0.68861451,1522.7,1522.4,54.33597604]
[1674131800295,7.25590451,1522.7,1522.4,54.33597604]